[Event "*** Titled Tuesday Blitz"]
[Site "Chess.com"]
[Date "2021.03.30"]
[Round "7"]
[White "KNVB"]
[Black "utsavp"]
[Result "1/2-1/2"]
[WhiteElo "2634"]
[BlackElo "2306"]
[TimeControl "180+1"]
[EndTime "11:19:36 PDT"]
[Termination "Game drawn by repetition"]

1. e4 {[%clk 0:03:00.9]} 1... c5 {[%clk 0:02:58.9]} 2. Nf3 {[%clk 0:03:01]} 2...
Nf6 {[%clk 0:02:58.4]} 3. e5 {[%clk 0:02:56.8]} 3... Nd5 {[%clk 0:02:57.9]} 4.
Nc3 {[%clk 0:02:57.7]} 4... Nxc3 {[%clk 0:02:57.2]} 5. dxc3 {[%clk 0:02:58.6]}
5... e6 {[%clk 0:02:57]} 6. Bd3 {[%clk 0:02:53]} 6... d5 {[%clk 0:02:44.2]} 7.
exd6 {[%clk 0:02:42.6]} 7... Qxd6 {[%clk 0:02:43.6]} 8. Qe2 {[%clk 0:02:38.4]}
8... Nc6 {[%clk 0:02:41.6]} 9. Bg5 {[%clk 0:02:38.2]} 9... Be7 {[%clk
0:02:40.9]} 10. Bxe7 {[%clk 0:02:32.3]} 10... Qxe7 {[%clk 0:02:40.6]} 11. O-O-O
{[%clk 0:02:33.2]} 11... Bd7 {[%clk 0:02:38.3]} 12. Ne5 {[%clk 0:02:30.3]} 12...
O-O-O {[%clk 0:02:32.5]} 13. f4 {[%clk 0:02:02]} 13... Nxe5 {[%clk 0:02:07.1]}
14. Qxe5 {[%clk 0:02:02.9]} 14... Bc6 {[%clk 0:02:07]} 15. Rhe1 {[%clk
0:01:55.7]} 15... Qc7 {[%clk 0:01:58.4]} 16. g3 {[%clk 0:00:59.4]} 16... Qxe5
{[%clk 0:01:57.4]} 17. Rxe5 {[%clk 0:01:00.3]} 17... b6 {[%clk 0:01:57.3]} 18.
f5 {[%clk 0:01:00.8]} 18... Bd7 {[%clk 0:01:48.4]} 19. fxe6 {[%clk 0:00:24.6]}
19... Bxe6 {[%clk 0:01:47.4]} 20. b4 {[%clk 0:00:25.5]} 20... c4 {[%clk
0:01:37.1]} 21. Be2 {[%clk 0:00:17]} 21... Rxd1+ {[%clk 0:01:34.4]} 22. Kxd1
{[%clk 0:00:17.9]} 22... Rd8+ {[%clk 0:01:34.2]} 23. Ke1 {[%clk 0:00:17.2]}
23... Kc7 {[%clk 0:01:28.6]} 24. h4 {[%clk 0:00:11.2]} 24... Rd5 {[%clk
0:01:05.5]} 25. Re4 {[%clk 0:00:05.3]} 25... b5 {[%clk 0:01:05.3]} 26. a4 {[%clk
0:00:04.4]} 26... a6 {[%clk 0:01:04.9]} 27. a5 {[%clk 0:00:04.3]} 27... Kd6
{[%clk 0:01:03.5]} 28. Bf3 {[%clk 0:00:01.8]} 28... Re5 {[%clk 0:01:00.7]} 29.
Kd2 {[%clk 0:00:01.4]} 29... Rxe4 {[%clk 0:00:46.8]} 30. Bxe4 {[%clk 0:00:02.3]}
30... Bd5 {[%clk 0:00:45.5]} 31. Bxh7 {[%clk 0:00:02.6]} 31... g6 {[%clk
0:00:44.9]} 32. g4 {[%clk 0:00:02.4]} 32... Bf3 {[%clk 0:00:43.4]} 33. h5 {[%clk
0:00:01.7]} 33... gxh5 {[%clk 0:00:42.8]} 34. gxh5 {[%clk 0:00:02.6]} 34... Bxh5
{[%clk 0:00:43.7]} 35. Be4 {[%clk 0:00:03.3]} 35... Kc7 {[%clk 0:00:43.3]} 36.
Ke3 {[%clk 0:00:03.4]} 36... Bg6 {[%clk 0:00:43]} 37. Bd5 {[%clk 0:00:02.4]}
37... f6 {[%clk 0:00:39.9]} 38. Kd4 {[%clk 0:00:02.3]} 38... Bxc2 {[%clk
0:00:39.1]} 39. Bf3 {[%clk 0:00:02.8]} 39... Bf5 {[%clk 0:00:37.3]} 40. Kd5
{[%clk 0:00:02.6]} 40... Bc8 {[%clk 0:00:36.7]} 41. Kd4 {[%clk 0:00:02.5]} 41...
Kd6 {[%clk 0:00:35.5]} 42. Be4 {[%clk 0:00:02.6]} 42... f5 {[%clk 0:00:29.5]}
43. Bf3 {[%clk 0:00:02.5]} 43... f4 {[%clk 0:00:28.4]} 44. Be4 {[%clk
0:00:01.7]} 44... Bd7 {[%clk 0:00:27.4]} 45. Bf3 {[%clk 0:00:01.4]} 45... Bc6
{[%clk 0:00:27.2]} 46. Bxc6 {[%clk 0:00:01.8]} 46... Kxc6 {[%clk 0:00:26.8]} 47.
Ke4 {[%clk 0:00:02.5]} 47... Kd6 {[%clk 0:00:25.3]} 48. Kxf4 {[%clk 0:00:02.8]}
48... Kd5 {[%clk 0:00:24.7]} 49. Kf5 {[%clk 0:00:03.1]} 49... Kd6 {[%clk
0:00:24.6]} 50. Kf6 {[%clk 0:00:02.8]} 50... Kd5 {[%clk 0:00:24.3]} 51. Kf5
{[%clk 0:00:02.7]} 51... Kd6 {[%clk 0:00:24.1]} 52. Kf4 {[%clk 0:00:02.2]} 52...
Ke6 {[%clk 0:00:22.5]} 53. Ke4 {[%clk 0:00:02.4]} 53... Kd6 {[%clk 0:00:20.1]}
54. Kd4 {[%clk 0:00:02.5]} 54... Kc6 {[%clk 0:00:19.4]} 55. Ke5 {[%clk
0:00:02.8]} 55... Kc7 {[%clk 0:00:18.2]} 56. Ke6 {[%clk 0:00:02.7]} 56... Kc6
{[%clk 0:00:18.1]} 57. Ke7 {[%clk 0:00:02.9]} 57... Kc7 {[%clk 0:00:18.1]} 58.
Ke6 {[%clk 0:00:02.2]} 58... Kc6 {[%clk 0:00:18]} 59. Ke5 {[%clk 0:00:01.5]}
59... Kc7 {[%clk 0:00:17.9]} 60. Kd4 {[%clk 0:00:01.8]} 60... Kd6 {[%clk
0:00:17.5]} 61. Ke4 {[%clk 0:00:02.5]} 61... Ke6 {[%clk 0:00:17.4]} 62. Kd4
{[%clk 0:00:03]} 62... Kd6 {[%clk 0:00:16.5]} 63. Ke4 {[%clk 0:00:03.6]} 63...
Kc6 {[%clk 0:00:08]} 64. Ke5 {[%clk 0:00:03.5]} 1/2-1/2

[Event "*** Titled Tuesday Blitz"]
[Site "Chess.com"]
[Date "2021.03.30"]
[Round "7"]
[White "CzechmVIII"]
[Black "thechesscorner64"]
[Result "1-0"]
[WhiteElo "2232"]
[BlackElo "2339"]
[TimeControl "180+1"]
[EndTime "11:19:37 PDT"]
[Termination "CzechmVIII won by resignation"]

1. e4 {[%clk 0:03:00.9]} 1... c5 {[%clk 0:02:58.4]} 2. Nf3 {[%clk 0:03:00.9]}
2... e6 {[%clk 0:02:57.4]} 3. Nc3 {[%clk 0:03:01.1]} 3... a6 {[%clk 0:02:52.9]}
4. g3 {[%clk 0:03:01.1]} 4... b5 {[%clk 0:02:46.2]} 5. d4 {[%clk 0:03:01.2]}
5... cxd4 {[%clk 0:02:46.2]} 6. Nxd4 {[%clk 0:03:02.1]} 6... Bb7 {[%clk
0:02:46]} 7. Bg2 {[%clk 0:03:02.7]} 7... Nf6 {[%clk 0:02:45]} 8. O-O {[%clk
0:03:02.9]} 8... b4 {[%clk 0:02:45.3]} 9. Na4 {[%clk 0:03:03.5]} 9... Bxe4
{[%clk 0:02:44.7]} 10. Bxe4 {[%clk 0:03:03.6]} 10... Nxe4 {[%clk 0:02:45.1]} 11.
c3 {[%clk 0:03:03.5]} 11... bxc3 {[%clk 0:02:40.2]} 12. bxc3 {[%clk 0:03:04.4]}
12... Nc5 {[%clk 0:02:20.1]} 13. Rb1 {[%clk 0:02:32]} 13... Nc6 {[%clk
0:02:05.1]} 14. Nb6 {[%clk 0:01:54.4]} 14... Rb8 {[%clk 0:01:51.8]} 15. Nxc6
{[%clk 0:01:00.9]} 15... dxc6 {[%clk 0:01:52.7]} 16. Bf4 {[%clk 0:00:49.7]}
16... Qxd1 {[%clk 0:00:57.5]} 17. Rfxd1 {[%clk 0:00:49.1]} 17... Rb7 {[%clk
0:00:57.3]} 18. Nc4 {[%clk 0:00:44.3]} 18... Be7 {[%clk 0:00:52]} 19. Rxb7
{[%clk 0:00:24.5]} 19... Nxb7 {[%clk 0:00:51.5]} 20. Ne5 {[%clk 0:00:24.7]}
20... O-O {[%clk 0:00:34.4]} 21. Rd7 {[%clk 0:00:20.7]} 21... Bf6 {[%clk
0:00:25.1]} 22. Rxb7 {[%clk 0:00:19.2]} 22... g5 {[%clk 0:00:25.3]} 23. Nxc6
{[%clk 0:00:16.9]} 23... gxf4 {[%clk 0:00:24.6]} 24. Nd4 {[%clk 0:00:14.4]}
24... Rc8 {[%clk 0:00:23.1]} 25. Ne2 {[%clk 0:00:13]} 25... f3 {[%clk
0:00:21.8]} 26. Nf4 {[%clk 0:00:09.8]} 26... Rxc3 {[%clk 0:00:20.2]} 27. h4
{[%clk 0:00:09.7]} 27... Kf8 {[%clk 0:00:10.1]} 28. Nh5 {[%clk 0:00:08.4]} 28...
Bd4 {[%clk 0:00:09]} 29. Rb8+ {[%clk 0:00:06.7]} 29... Ke7 {[%clk 0:00:08.9]}
30. Rb7+ {[%clk 0:00:07.2]} 30... Kd6 {[%clk 0:00:06.1]} 31. Nf4 {[%clk
0:00:07.2]} 31... Rc1+ {[%clk 0:00:05.1]} 32. Kh2 {[%clk 0:00:06.5]} 32... Rc2
{[%clk 0:00:04.8]} 33. Rxf7 {[%clk 0:00:06.4]} 33... Rxf2+ {[%clk 0:00:04.6]}
34. Kh3 {[%clk 0:00:07]} 34... Rxa2 {[%clk 0:00:03.9]} 35. Nd3 {[%clk
0:00:06.1]} 35... f2 {[%clk 0:00:03.4]} 36. Nxf2 {[%clk 0:00:06.1]} 36... Rxf2
{[%clk 0:00:02.4]} 37. Rxh7 {[%clk 0:00:07]} 37... Be3 {[%clk 0:00:02.5]} 38.
Rh8 {[%clk 0:00:06.9]} 38... Ke5 {[%clk 0:00:03.4]} 39. Ra8 {[%clk 0:00:06.4]}
39... Ra2 {[%clk 0:00:02.8]} 40. h5 {[%clk 0:00:06.1]} 40... a5 {[%clk
0:00:02.6]} 41. g4 {[%clk 0:00:06]} 41... a4 {[%clk 0:00:03]} 42. Kh4 {[%clk
0:00:06.4]} 42... Bf2+ {[%clk 0:00:02.4]} 43. Kg5 {[%clk 0:00:06.2]} 43... a3
{[%clk 0:00:03.3]} 44. h6 {[%clk 0:00:06.1]} 44... Be3+ {[%clk 0:00:04.2]} 45.
Kg6 {[%clk 0:00:06]} 45... Rg2 {[%clk 0:00:03.1]} 46. h7 {[%clk 0:00:04.9]}
46... Rxg4+ {[%clk 0:00:03.3]} 47. Kf7 {[%clk 0:00:05.8]} 47... Rh4 {[%clk
0:00:03.6]} 48. h8=Q+ {[%clk 0:00:04.7]} 48... Rxh8 {[%clk 0:00:03]} 49. Rxh8
{[%clk 0:00:05.6]} 49... Bd4 {[%clk 0:00:03.1]} 50. Ra8 {[%clk 0:00:05.9]} 50...
a2 {[%clk 0:00:03.4]} 51. Rxa2 {[%clk 0:00:05.5]} 51... Ke4 {[%clk 0:00:04.3]}
52. Kxe6 {[%clk 0:00:03.9]} 52... Kd3 {[%clk 0:00:04.7]} 53. Ra6 {[%clk
0:00:03.7]} 53... Bc3 {[%clk 0:00:05.6]} 54. Rd6+ {[%clk 0:00:03.9]} 54... Kc4
{[%clk 0:00:06.5]} 55. Rd7 {[%clk 0:00:04.6]} 55... Bb4 {[%clk 0:00:06.7]} 56.
Rf7 {[%clk 0:00:05.5]} 56... Bc3 {[%clk 0:00:07.1]} 57. Rh7 {[%clk 0:00:06.4]}
57... Bd4 {[%clk 0:00:07.2]} 58. Rf7 {[%clk 0:00:07.3]} 58... Kd3 {[%clk
0:00:07.9]} 59. Rd7 {[%clk 0:00:08.2]} 59... Ke4 {[%clk 0:00:08.5]} 60. Rb7
{[%clk 0:00:09.1]} 60... Bc3 {[%clk 0:00:08.8]} 61. Rb5 {[%clk 0:00:10]} 61...
Kd3 {[%clk 0:00:09]} 62. Rf5 {[%clk 0:00:10.5]} 62... Kc4 {[%clk 0:00:09.9]} 63.
Rh5 {[%clk 0:00:10.2]} 63... Kd3 {[%clk 0:00:10.8]} 64. Rh4 {[%clk 0:00:10]}
64... Bd4 {[%clk 0:00:10.7]} 65. Kd5 {[%clk 0:00:09.9]} 65... Be3 {[%clk
0:00:10.8]} 66. Rg4 {[%clk 0:00:09.9]} 66... Ke2 {[%clk 0:00:11.2]} 67. Ke4
{[%clk 0:00:10]} 67... Bf2 {[%clk 0:00:11]} 68. Rg8 {[%clk 0:00:09.4]} 68... Bc5
{[%clk 0:00:10]} 69. Rg2+ {[%clk 0:00:09.2]} 69... Kd1 {[%clk 0:00:09.8]} 70.
Ra2 {[%clk 0:00:09.9]} 70... Kc1 {[%clk 0:00:09.6]} 71. Kd3 {[%clk 0:00:10]}
71... Kb1 {[%clk 0:00:09.8]} 72. Rg2 {[%clk 0:00:09.9]} 72... Kc1 {[%clk
0:00:08.1]} 73. Kc3 {[%clk 0:00:07.2]} 73... Kd1 {[%clk 0:00:07.9]} 74. Kd3
{[%clk 0:00:06.8]} 74... Ke1 {[%clk 0:00:08.1]} 75. Rc2 {[%clk 0:00:06.2]} 75...
Kf1 {[%clk 0:00:07.7]} 76. Rxc5 {[%clk 0:00:06]} 1-0

[Event "*** Titled Tuesday Blitz"]
[Site "Chess.com"]
[Date "2021.03.30"]
[Round "7"]
[White "FairChess_on_YouTube"]
[Black "seorobert1971"]
[Result "1-0"]
[WhiteElo "3001"]
[BlackElo "2737"]
[TimeControl "180+1"]
[EndTime "11:19:46 PDT"]
[Termination "FairChess_on_YouTube won on time"]

1. d4 {[%clk 0:03:00.9]} 1... e6 {[%clk 0:03:00.9]} 2. Nf3 {[%clk 0:02:59.1]}
2... d5 {[%clk 0:03:01.1]} 3. Bf4 {[%clk 0:02:57.7]} 3... Nf6 {[%clk 0:03:02]}
4. e3 {[%clk 0:02:57.8]} 4... Bd6 {[%clk 0:03:01.2]} 5. Bg3 {[%clk 0:02:57.9]}
5... c5 {[%clk 0:03:01.1]} 6. c3 {[%clk 0:02:57.8]} 6... O-O {[%clk 0:03:00.5]}
7. Nbd2 {[%clk 0:02:57]} 7... b6 {[%clk 0:03:00.1]} 8. Ne5 {[%clk 0:02:56.5]}
8... Ba6 {[%clk 0:02:57.4]} 9. Bxa6 {[%clk 0:02:54.4]} 9... Nxa6 {[%clk
0:02:57.3]} 10. Bh4 {[%clk 0:02:54.9]} 10... Nb8 {[%clk 0:02:53.5]} 11. f4
{[%clk 0:02:46.2]} 11... Be7 {[%clk 0:02:52.3]} 12. O-O {[%clk 0:02:44.6]} 12...
Nfd7 {[%clk 0:02:51.9]} 13. Bxe7 {[%clk 0:02:43.5]} 13... Qxe7 {[%clk
0:02:51.7]} 14. Qh5 {[%clk 0:02:44]} 14... f6 {[%clk 0:02:50.5]} 15. Ng4 {[%clk
0:02:40.5]} 15... f5 {[%clk 0:02:49.4]} 16. Ne5 {[%clk 0:02:36.5]} 16... Nf6
{[%clk 0:02:48]} 17. Qh4 {[%clk 0:02:34.8]} 17... Nbd7 {[%clk 0:02:46.8]} 18.
Rf3 {[%clk 0:02:31.4]} 18... Rfe8 {[%clk 0:02:32.3]} 19. Rh3 {[%clk 0:02:30.9]}
19... Nf8 {[%clk 0:02:26.4]} 20. Qf2 {[%clk 0:01:46.2]} 20... N8d7 {[%clk
0:02:23.1]} 21. Qh4 {[%clk 0:01:38.7]} 21... Nf8 {[%clk 0:02:22.2]} 22. Kh1
{[%clk 0:01:33.4]} 22... Ne4 {[%clk 0:02:17.6]} 23. Qe1 {[%clk 0:01:33]} 23...
Nxd2 {[%clk 0:02:14.4]} 24. Qxd2 {[%clk 0:01:33.9]} 24... Nd7 {[%clk 0:02:13]}
25. Nf3 {[%clk 0:01:26.4]} 25... Nf6 {[%clk 0:02:11.2]} 26. Rg1 {[%clk
0:01:26.8]} 26... b5 {[%clk 0:01:59.4]} 27. Ne5 {[%clk 0:01:21]} 27... cxd4
{[%clk 0:01:47.3]} 28. exd4 {[%clk 0:01:18.7]} 28... a5 {[%clk 0:01:42.7]} 29.
g4 {[%clk 0:00:54.2]} 29... fxg4 {[%clk 0:01:41.1]} 30. Nxg4 {[%clk 0:00:55.1]}
30... Nxg4 {[%clk 0:01:28.2]} 31. Rxg4 {[%clk 0:00:56]} 31... Qf6 {[%clk
0:01:12.7]} 32. Rgh4 {[%clk 0:00:37.7]} 32... h6 {[%clk 0:01:08.1]} 33. Qg2
{[%clk 0:00:37.4]} 33... Kf7 {[%clk 0:01:02.1]} 34. Rg4 {[%clk 0:00:35.9]} 34...
Rg8 {[%clk 0:00:58.4]} 35. Rhg3 {[%clk 0:00:34.4]} 35... g6 {[%clk 0:00:57.9]}
36. Rh3 {[%clk 0:00:30.9]} 36... h5 {[%clk 0:00:56.1]} 37. Rg5 {[%clk
0:00:30.9]} 37... b4 {[%clk 0:00:55.4]} 38. Qd2 {[%clk 0:00:25.3]} 38... bxc3
{[%clk 0:00:50.6]} 39. Rxc3 {[%clk 0:00:24.6]} 39... Rgc8 {[%clk 0:00:47.4]} 40.
Qd3 {[%clk 0:00:16.7]} 40... Rxc3 {[%clk 0:00:43.4]} 41. bxc3 {[%clk 0:00:17.6]}
41... Rb8 {[%clk 0:00:39.1]} 42. Rg1 {[%clk 0:00:15.8]} 42... Rb2 {[%clk
0:00:34.2]} 43. Rg2 {[%clk 0:00:06.1]} 43... Rxg2 {[%clk 0:00:30.5]} 44. Kxg2
{[%clk 0:00:07]} 44... Qxf4 {[%clk 0:00:30.6]} 45. a4 {[%clk 0:00:04.2]} 45...
Qg4+ {[%clk 0:00:22.6]} 46. Kh1 {[%clk 0:00:03.5]} 46... Qf5 {[%clk 0:00:21.5]}
47. Qa6 {[%clk 0:00:02.4]} 47... Qf2 {[%clk 0:00:18.3]} 48. h3 {[%clk
0:00:01.7]} 48... Qe1+ {[%clk 0:00:14]} 49. Kh2 {[%clk 0:00:01.7]} 49... Qxc3
{[%clk 0:00:13.6]} 50. Qa7+ {[%clk 0:00:02.1]} 50... Kf6 {[%clk 0:00:13.3]} 51.
Qa8 {[%clk 0:00:02.7]} 51... Qd2+ {[%clk 0:00:11.9]} 52. Kh1 {[%clk 0:00:02.8]}
52... Qd1+ {[%clk 0:00:11.5]} 53. Kh2 {[%clk 0:00:03.1]} 53... Qe2+ {[%clk
0:00:11]} 54. Kh1 {[%clk 0:00:03.3]} 54... Qe4+ {[%clk 0:00:10.4]} 55. Kh2
{[%clk 0:00:03.2]} 55... Qf4+ {[%clk 0:00:10.1]} 56. Kg2 {[%clk 0:00:02.6]}
56... Qe4+ {[%clk 0:00:08.3]} 57. Kh2 {[%clk 0:00:02.7]} 57... Kg5 {[%clk
0:00:06.6]} 58. Qxa5 {[%clk 0:00:02.1]} 58... Kh4 {[%clk 0:00:04.5]} 59. Qd8+
{[%clk 0:00:01.5]} 59... g5 {[%clk 0:00:03.9]} 60. Qf8 {[%clk 0:00:01.5]} 60...
Qe2+ {[%clk 0:00:03.4]} 61. Kg1 {[%clk 0:00:02.1]} 61... Kg3 {[%clk 0:00:03]}
62. Qb8+ {[%clk 0:00:01.2]} 62... Kxh3 {[%clk 0:00:01.2]} 63. Qe5 {[%clk
0:00:01.9]} 1-0

[Event "*** Titled Tuesday Blitz"]
[Site "Chess.com"]
[Date "2021.03.30"]
[Round "7"]
[White "theredking89"]
[Black "ChessQueen"]
[Result "1/2-1/2"]
[WhiteElo "2566"]
[BlackElo "2708"]
[TimeControl "180+1"]
[EndTime "11:19:47 PDT"]
[Termination "Game drawn - insufficient material"]

1. e4 {[%clk 0:03:00.9]} 1... c6 {[%clk 0:02:59.5]} 2. Nc3 {[%clk 0:03:00.1]}
2... d5 {[%clk 0:02:59.4]} 3. Nf3 {[%clk 0:03:01]} 3... dxe4 {[%clk 0:02:59.7]}
4. Nxe4 {[%clk 0:03:01.9]} 4... Nf6 {[%clk 0:03:00.1]} 5. Qe2 {[%clk 0:02:58.9]}
5... Nxe4 {[%clk 0:03:00.1]} 6. Qxe4 {[%clk 0:02:59.8]} 6... Nd7 {[%clk
0:03:00.7]} 7. Bc4 {[%clk 0:02:59.2]} 7... Nf6 {[%clk 0:03:00.8]} 8. Ne5 {[%clk
0:02:56.6]} 8... e6 {[%clk 0:03:00.9]} 9. Qe2 {[%clk 0:02:56.4]} 9... b5 {[%clk
0:03:00.5]} 10. Bb3 {[%clk 0:02:44.2]} 10... Qc7 {[%clk 0:03:00.4]} 11. c3
{[%clk 0:02:42.2]} 11... Bd6 {[%clk 0:02:59.6]} 12. d4 {[%clk 0:02:41.8]} 12...
O-O {[%clk 0:02:59.7]} 13. Bf4 {[%clk 0:02:34.2]} 13... a5 {[%clk 0:02:45.9]}
14. O-O {[%clk 0:02:32.8]} 14... c5 {[%clk 0:02:43.7]} 15. dxc5 {[%clk
0:02:29.8]} 15... Qxc5 {[%clk 0:02:41.2]} 16. Rad1 {[%clk 0:02:23.1]} 16... Bc7
{[%clk 0:02:21]} 17. Nd3 {[%clk 0:02:07.4]} 17... Qb6 {[%clk 0:02:17]} 18. Bxc7
{[%clk 0:02:05]} 18... Qxc7 {[%clk 0:02:17.9]} 19. Qe5 {[%clk 0:02:04.8]} 19...
Qc6 {[%clk 0:02:12.4]} 20. Qc5 {[%clk 0:02:04.1]} 20... Bb7 {[%clk 0:01:54.2]}
21. Qxc6 {[%clk 0:02:03.8]} 21... Bxc6 {[%clk 0:01:55.1]} 22. Ne5 {[%clk
0:02:03.1]} 22... Bd5 {[%clk 0:01:54.9]} 23. Rd4 {[%clk 0:01:54.5]} 23... Rfc8
{[%clk 0:01:40.9]} 24. Rfd1 {[%clk 0:01:51.1]} 24... Rc5 {[%clk 0:01:24.8]} 25.
Nd3 {[%clk 0:01:47.2]} 25... Rcc8 {[%clk 0:01:22.5]} 26. Ne5 {[%clk 0:01:42.7]}
26... Rc5 {[%clk 0:01:22.4]} 27. f3 {[%clk 0:01:40.7]} 27... Kf8 {[%clk
0:01:16.7]} 28. Bxd5 {[%clk 0:01:39.5]} 28... Rxd5 {[%clk 0:01:16.6]} 29. Rxd5
{[%clk 0:01:32.8]} 29... Nxd5 {[%clk 0:01:16.8]} 30. Kf2 {[%clk 0:01:26.1]}
30... Ke7 {[%clk 0:01:16]} 31. c4 {[%clk 0:01:24.2]} 31... bxc4 {[%clk
0:01:15.2]} 32. Nxc4 {[%clk 0:01:25.1]} 32... a4 {[%clk 0:01:14.6]} 33. Ne3
{[%clk 0:01:19.4]} 33... Nb4 {[%clk 0:01:09.9]} 34. a3 {[%clk 0:01:18.3]} 34...
Nc6 {[%clk 0:01:09.9]} 35. Rc1 {[%clk 0:01:17.7]} 35... Kd7 {[%clk 0:01:03.7]}
36. Rc4 {[%clk 0:01:06.4]} 36... e5 {[%clk 0:00:56.7]} 37. Ke1 {[%clk
0:00:52.3]} 37... f6 {[%clk 0:00:49.7]} 38. Kd2 {[%clk 0:00:51.7]} 38... Na5
{[%clk 0:00:44.5]} 39. Rb4 {[%clk 0:00:42.2]} 39... Nb3+ {[%clk 0:00:44.7]} 40.
Kc3 {[%clk 0:00:41.9]} 40... Nc5 {[%clk 0:00:41.9]} 41. Nc4 {[%clk 0:00:39.5]}
41... Ra7 {[%clk 0:00:32.6]} 42. Rb6 {[%clk 0:00:36]} 42... Ne6 {[%clk
0:00:30.9]} 43. Rd6+ {[%clk 0:00:34]} 43... Ke7 {[%clk 0:00:31.4]} 44. Rc6
{[%clk 0:00:24.8]} 44... Nf4 {[%clk 0:00:31.6]} 45. g3 {[%clk 0:00:23.5]} 45...
Ne2+ {[%clk 0:00:31.3]} 46. Kb4 {[%clk 0:00:21.6]} 46... Nd4 {[%clk 0:00:32.2]}
47. Rb6 {[%clk 0:00:21.5]} 47... Nxf3 {[%clk 0:00:31.4]} 48. Nd6 {[%clk
0:00:18.6]} 48... Rd7 {[%clk 0:00:28.8]} 49. Nf5+ {[%clk 0:00:17.3]} 49... Kf7
{[%clk 0:00:28.9]} 50. Kxa4 {[%clk 0:00:17.5]} 50... g6 {[%clk 0:00:28.2]} 51.
Nd6+ {[%clk 0:00:17.4]} 51... Ke7 {[%clk 0:00:28.8]} 52. Ne4 {[%clk 0:00:16]}
52... f5 {[%clk 0:00:27]} 53. Nc5 {[%clk 0:00:15.9]} 53... Rd4+ {[%clk
0:00:24.8]} 54. Rb4 {[%clk 0:00:16.1]} 54... e4 {[%clk 0:00:24.3]} 55. Rxd4
{[%clk 0:00:15.2]} 55... Nxd4 {[%clk 0:00:24.5]} 56. Kb4 {[%clk 0:00:15.3]}
56... Kd6 {[%clk 0:00:23]} 57. Kc4 {[%clk 0:00:15.6]} 57... Nf3 {[%clk
0:00:22.8]} 58. b4 {[%clk 0:00:14.2]} 58... Nxh2 {[%clk 0:00:20.4]} 59. a4
{[%clk 0:00:14]} 59... Nf1 {[%clk 0:00:20.9]} 60. a5 {[%clk 0:00:12.9]} 60...
Ne3+ {[%clk 0:00:19.2]} 61. Kd4 {[%clk 0:00:10.8]} 61... Nc2+ {[%clk 0:00:19.4]}
62. Kc4 {[%clk 0:00:10.8]} 62... Na3+ {[%clk 0:00:19.8]} 63. Kd4 {[%clk
0:00:10.9]} 63... Nb5+ {[%clk 0:00:19.9]} 64. Kc4 {[%clk 0:00:11.1]} 64... Na3+
{[%clk 0:00:17.7]} 65. Kd4 {[%clk 0:00:08.4]} 65... Nb5+ {[%clk 0:00:16.8]} 66.
Kc4 {[%clk 0:00:08.2]} 66... Kc6 {[%clk 0:00:16.8]} 67. Ne6 {[%clk 0:00:06.2]}
67... h5 {[%clk 0:00:13.6]} 68. Nf4 {[%clk 0:00:05.8]} 68... g5 {[%clk
0:00:12.8]} 69. Nxh5 {[%clk 0:00:06]} 69... Nd6+ {[%clk 0:00:11.7]} 70. Kd4
{[%clk 0:00:05.7]} 70... Kb5 {[%clk 0:00:12.3]} 71. Ng7 {[%clk 0:00:04.5]} 71...
Kxb4 {[%clk 0:00:12.2]} 72. a6 {[%clk 0:00:04.1]} 72... f4 {[%clk 0:00:10.9]}
73. gxf4 {[%clk 0:00:03]} 73... gxf4 {[%clk 0:00:11.8]} 74. a7 {[%clk
0:00:02.9]} 74... Nb5+ {[%clk 0:00:12.2]} 75. Kxe4 {[%clk 0:00:03.2]} 75... Nxa7
{[%clk 0:00:12.6]} 76. Kxf4 {[%clk 0:00:03.7]} 1/2-1/2